[Event "SVK Extraliga 2017-18"]
[Site "Slovakia"]
[Date "2017.12.10"]
[Round "6"]
[White "Macko, Miroslav"]
[Black "Bombek, Peter"]
[Result "0-1"]
[ECO "C03"]
[WhiteElo "2262"]
[BlackElo "2241"]
[Annotator "NA"]
[PlyCount "100"]
[EventDate "2017.??.??"]
[EventType "team-tourn"]
[EventCountry "SVK"]
[SourceTitle "playchess.com"]
[Source "ChessBase"]
[SourceQuality "1"]
[TimeControl "40/5400+30:1800+30"]

1. e4 {[%emt 0:00:00]} e6 {[%emt 0:00:03]} 2. d4 {[%emt 0:00:00]} d5 {[%emt 0:00:03]} 3. Nd2 {[%emt 0:00:00]} Be7 {[%emt 0:00:06]} 4. Ngf3 {[%emt 0:08:02]} c5 {[%emt 0:02:20]} 5. exd5 {[%emt 0:04:50]} exd5 {[%emt 0:01:25]} 6. Be2 {[%emt 0:03:16]} Nc6 {[%emt 0:02:01]} 7. dxc5 {[%emt 0:04:08]} Bxc5 {[%emt 0:00:59]} 8. Nb3 {[%emt 0:01:33]} Bb6 {[%emt 0:00:20]} 9. O-O {[%emt 0:00:41]} Nge7 {[%emt 0:02:52]} 10. c3 {[%emt 0:05:27]} O-O {[%emt 0:00:52]} 11. Bf4 {[%emt 0:02:12]} Bf5 {[%emt 0:03:43]} 12. Qd2 {[%emt 0:02:27]} Re8 {[%emt 0:04:48]} 13. Rfe1 {[%emt 0:07:37]} Qd7 {[%emt 0:04:19]} 14. a4 {[%emt 0:02:55]} a6 {[%emt 0:01:21]} 15. a5 {[%emt 0:06:41]} Ba7 {[%emt 0:00:54]} 16. Be3 {[%emt 0:01:05]} Bxe3 {[%emt 0:08:40]} 17. Qxe3 Ng6 {[%emt 0:04:00]} 18. Qd2 {[%emt 0:06:22]} Qd6 {[%emt 0:07:29]} 19. Nbd4 {[%emt 0:03:59]} Be4 {[%emt 0:03:27]} 20. g3 {[%emt 0:12:52]} h6 {[%emt 0:07:39]} 21. Bf1 {[%emt 0:08:19]} Rad8 {[%emt 0:04:11]} 22. Bg2 {[%emt 0:01:21]} Qf6 {[%emt 0:07:59]} 23. Ra4 {[%emt 0:06:05]} Nxd4 24. Nxd4 Ne5 {[%emt 0:07:44]} 25. Rb4 {[%emt 0:05:05]} Bxg2 {[%emt 0:03:36]} 26. Kxg2 {[%emt 0:00:10]} Nc4 {[%emt 0:00:42]} 27. Rxe8+ {[%emt 0:01:04]} Rxe8 {[%emt 0:00:05]} 28. Qd1 {[%emt 0:00:06]} Re7 {[%emt 0:04:48]} 29. Nf3 {[%emt 0:01:57]} Qe6 {[%emt 0:02:50]} 30. Qa1 {[%emt 0:01:55]} Qe2 {[%emt 0:01:09]} 31. Nd4 {[%emt 0:01:42]} Qd2 {[%emt 0:03:20]} 32. Nf3 {[%emt 0:00:42]} Qe2 {[%emt 0:03:12]} 33. Nd4 {[%emt 0:00:08]} Qe4+ {[%emt 0:00:44]} 34. Nf3 {[%emt 0:00:09]} Qd3 {[%emt 0:02:03]} 35. b3 {[%emt 0:01:29]} Ne3+ {[%emt 0:01:44]} 36. fxe3 {[%emt 0:02:11]} Qe2+ {[%emt 0:00:06]} 37. Kh3 {[%emt 0:01:23]} Qxf3 {[%emt 0:00:06]} 38. Rf4 {[%emt 0:00:28]} Qh5+ {[%emt 0:01:18]} 39. Kg2 {[%emt 0:00:27]} Rxe3 {[%emt 0:01:52]} 40. Qf1 {[%emt 0:00:32]} Rxc3 {[%emt 0:31:22]} 41. b4 {[%emt 0:07:24]} d4 {[%emt 0:00:00]} 42. Rf2 {[%emt 0:01:37]} d3 {[%emt 0:00:00]} 43. Rd2 {[%emt 0:01:05]} Qd5+ {[%emt 0:00:00]} 44. Kh3 {[%emt 0:01:59]} Rc2 {[%emt 0:00:00]} 45. Qd1 {[%emt 0:00:50]} Qe6+ {[%emt 0:00:00]} 46. Kg2 {[%emt 0:00:54]} Qe3 {[%emt 0:00:00]} 47. Rxc2 {[%emt 0:00:39]} Qe4+ {[%emt 0:00:00]} 48. Kg1 {[%emt 0:00:41]} dxc2 {[%emt 0:00:00]} 49. Qd2 {[%emt 0:00:54]} Qc4 {[%emt 0:00:00]} 50. Qc1 {[%emt 0:00:17]} Qe2 {[%emt 0:00:00]} 0-1

[Event "SVK Extraliga 2017-18"]
[Site "Slovakia"]
[Date "2017.12.10"]
[Round "6"]
[White "Lisko, Frantisek"]
[Black "Gasa, Patrik"]
[Result "1-0"]
[ECO "B06"]
[WhiteElo "2241"]
[BlackElo "2120"]
[Annotator "NA"]
[PlyCount "57"]
[EventDate "2017.??.??"]
[EventType "team-tourn"]
[EventCountry "SVK"]
[SourceTitle "playchess.com"]
[Source "ChessBase"]
[SourceQuality "1"]
[TimeControl "40/5400+30:1800+30"]

1. d4 {[%emt 0:00:00]} g6 {[%emt 0:00:03]} 2. e4 {[%emt 0:00:00]} Bg7 {[%emt 0:00:09]} 3. c4 {[%emt 0:00:48]} c5 {[%emt 0:00:30]} 4. d5 {[%emt 0:00:11]} d6 {[%emt 0:01:45]} 5. Ne2 {[%emt 0:02:59]} Na6 {[%emt 0:08:57]} 6. Nec3 {[%emt 0:01:21]} Nc7 {[%emt 0:00:55]} 7. Bg5 {[%emt 0:03:07]} Nf6 {[%emt 0:02:54]} 8. Be2 {[%emt 0:01:32]} Bd7 {[%emt 0:19:04]} 9. O-O {[%emt 0:01:37]} h6 {[%emt 0:08:44]} 10. Bh4 {[%emt 0:00:51]} g5 {[%emt 0:01:39]} 11. Bg3 {[%emt 0:00:20]} h5 {[%emt 0:06:42]} 12. h4 {[%emt 0:15:34]} gxh4 {[%emt 0:01:17]} 13. Bxh4 {[%emt 0:00:09]} Ng4 {[%emt 0:00:14]} 14. Nd2 {[%emt 0:02:36]} Bf6 {[%emt 0:15:19]} 15. Bxf6 {[%emt 0:01:56]} exf6 {[%emt 0:00:58]} 16. Nf3 {[%emt 0:05:23]} Qe7 {[%emt 0:00:59]} 17. a3 {[%emt 0:06:00]} O-O-O {[%emt 0:11:08]} 18. b4 {[%emt 0:00:26]} f5 {[%emt 0:02:00]} 19. bxc5 {[%emt 0:03:51]} fxe4 {[%emt 0:00:28]} 20. cxd6 {[%emt 0:00:36]} Qxd6 {[%emt 0:00:18]} 21. Nxe4 {[%emt 0:00:55]} Qf4 {[%emt 0:00:28]} 22. Nc5 {[%emt 0:01:22]} Bf5 {[%emt 0:04:44]} 23. Qa4 {[%emt 0:03:48]} Rdg8 {[%emt 0:07:11]} 24. Qxa7 {[%emt 0:03:26]} Ne5 {[%emt 0:04:28]} 25. Qxb7+ {[%emt 0:08:10]} Kd8 {[%emt 0:00:00]} 26. d6 {[%emt 0:01:52]} Rxg2+ {[%emt 0:02:04]} 27. Kxg2 {[%emt 0:00:08]} Rg8+ {[%emt 0:00:30]} 28. Kh1 {[%emt 0:00:12]} Nd5 {[%emt 0:00:25]} 29. cxd5 {[%emt 0:02:09]} 1-0

[Event "SVK Extraliga 2017-18"]
[Site "Slovakia"]
[Date "2017.12.10"]
[Round "6"]
[White "Fiacan, Robert"]
[Black "Tropp, Oliver"]
[Result "*"]
[ECO "B15"]
[WhiteElo "2229"]
[BlackElo "2198"]
[Annotator "NA"]
[PlyCount "26"]
[EventDate "2017.??.??"]
[EventType "team-tourn"]
[EventCountry "SVK"]
[SourceTitle "playchess.com"]
[Source "ChessBase"]
[SourceQuality "1"]
[TimeControl "40/5400+30:1800+30"]

1. e4 {[%emt 0:00:00]} c6 {[%emt 0:00:05]} 2. d4 {[%emt 0:00:00]} d5 {[%emt 0:00:07]} 3. Nc3 {[%emt 0:00:10]} dxe4 {[%emt 0:00:49]} 4. Nxe4 {[%emt 0:00:08]} Nf6 {[%emt 0:00:22]} 5. Nxf6+ {[%emt 0:00:57]} exf6 {[%emt 0:01:58]} 6. Nf3 {[%emt 0:07:50]} Bd6 {[%emt 0:02:41]} 7. Bd3 {[%emt 0:01:08]} Bg4 {[%emt 0:05:53]} 8. O-O {[%emt 0:01:06]} O-O {[%emt 0:00:51]} 9. h3 {[%emt 0:02:52]} Be6 {[%emt 0:03:09]} 10. Nh4 {[%emt 0:11:02]} g6 {[%emt 0:04:46]} 11. f4 {[%emt 0:11:03]} f5 {[%emt 0:01:14]} 12. Nf3 {[%emt 0:00:25]} Be7 {[%emt 0:04:23]} 13. Be3 {[%emt 0:04:29]} Nd7 {[%emt 0:01:01]} *

[Event "SVK Extraliga 2017-18"]
[Site "Slovakia"]
[Date "2017.12.10"]
[Round "6"]
[White "Fiacan, Robert"]
[Black "Tropp, Frantisek"]
[Result "1-0"]
[ECO "B15"]
[WhiteElo "2229"]
[BlackElo "2114"]
[Annotator "NA"]
[PlyCount "63"]
[EventDate "2017.??.??"]
[EventType "team-tourn"]
[EventCountry "SVK"]
[SourceTitle "playchess.com"]
[Source "ChessBase"]
[SourceQuality "1"]
[TimeControl "40/5400+30:1800+30"]

1. e4 {[%emt 0:00:00]} c6 {[%emt 0:00:05]} 2. d4 {[%emt 0:00:00]} d5 {[%emt 0:00:07]} 3. Nc3 {[%emt 0:00:10]} dxe4 {[%emt 0:00:49]} 4. Nxe4 {[%emt 0:00:08]} Nf6 {[%emt 0:00:22]} 5. Nxf6+ {[%emt 0:00:57]} exf6 {[%emt 0:01:58]} 6. Nf3 {[%emt 0:07:50]} Bd6 {[%emt 0:02:41]} 7. Bd3 {[%emt 0:01:08]} Bg4 {[%emt 0:05:53]} 8. O-O {[%emt 0:01:06]} O-O {[%emt 0:00:51]} 9. h3 {[%emt 0:02:52]} Be6 {[%emt 0:03:09]} 10. Nh4 {[%emt 0:11:02]} g6 {[%emt 0:04:46]} 11. f4 {[%emt 0:11:03]} f5 {[%emt 0:01:14]} 12. Nf3 {[%emt 0:00:25]} Be7 {[%emt 0:04:23]} 13. Be3 {[%emt 0:04:29]} Nd7 {[%emt 0:01:01]} 14. c4 {[%emt 0:05:30]} Nf6 {[%emt 0:08:35]} 15. Ng5 {[%emt 0:08:26]} Bc8 {[%emt 0:01:43]} 16. Qc2 {[%emt 0:06:13]} Nh5 {[%emt 0:00:21]} 17. Nf3 {[%emt 0:02:24]} Bd6 {[%emt 0:00:14]} 18. Ne5 {[%emt 0:12:15]} f6 {[%emt 0:16:36]} 19. c5 {[%emt 0:00:47]} fxe5 {[%emt 0:03:37]} 20. cxd6 {[%emt 0:07:21]} exf4 {[%emt 0:00:43]} 21. Qc4+ {[%emt 0:04:50]} Rf7 {[%emt 0:02:25]} 22. Bd2 {[%emt 0:01:28]} Qxd6 {[%emt 0:01:23]} 23. Rae1 {[%emt 0:01:06]} b5 {[%emt 0:01:57]} 24. Re8+ {[%emt 0:01:03]} Kg7 {[%emt 0:00:07]} 25. Qc3 {[%emt 0:03:03]} Bb7 {[%emt 0:03:32]} 26. d5+ {[%emt 0:00:30]} Kh6 {[%emt 0:00:27]} 27. Re6 {[%emt 0:01:36]} Qxd5 {[%emt 0:00:36]} 28. Rxf4 {[%emt 0:00:28]} Qxe6 {[%emt 0:07:50]} 29. Rxf5+ {[%emt 0:01:36]} Nf4 {[%emt 0:01:50]} 30. Bxf4+ {[%emt 0:00:13]} g5 {[%emt 0:00:44]} 31. Bxg5+ {[%emt 0:00:10]} Kg6 {[%emt 0:01:48]} 32. Re5+ {[%emt 0:00:50]} 1-0

[Event "SVK Extraliga 2017-18"]
[Site "Slovakia"]
[Date "2017.12.10"]
[Round "6"]
[White "Kostolansky, Sebastian Lukas"]
[Black "Horvath, Mario"]
[Result "1-0"]
[ECO "B50"]
[WhiteElo "2226"]
[BlackElo "2224"]
[Annotator "NA"]
[PlyCount "57"]
[EventDate "2017.??.??"]
[EventType "team-tourn"]
[EventCountry "SVK"]
[SourceTitle "playchess.com"]
[Source "ChessBase"]
[SourceQuality "1"]
[TimeControl "40/5400+30:1800+30"]

1. e4 {[%emt 0:00:00]} c5 {[%emt 0:00:13]} 2. Nf3 {[%emt 0:00:00]} d6 {[%emt 0:00:06]} 3. c3 {[%emt 0:00:00]} Nf6 {[%emt 0:00:55]} 4. h3 {[%emt 0:00:00]} Nc6 {[%emt 0:00:45]} 5. Bd3 {[%emt 0:00:04]} e6 {[%emt 0:02:25]} 6. O-O {[%emt 0:01:31]} Be7 {[%emt 0:01:28]} 7. Bc2 {[%emt 0:01:23]} O-O {[%emt 0:01:30]} 8. Re1 {[%emt 0:03:32]} b6 {[%emt 0:05:12]} 9. d4 {[%emt 0:07:51]} cxd4 {[%emt 0:18:12]} 10. cxd4 {[%emt 0:02:10]} Nb4 {[%emt 0:01:19]} 11. Bb3 {[%emt 0:04:39]} Ba6 {[%emt 0:02:02]} 12. Nc3 {[%emt 0:04:13]} Nd3 {[%emt 0:03:40]} 13. Re3 {[%emt 0:00:27]} Nxc1 {[%emt 0:00:10]} 14. Rxc1 {[%emt 0:00:09]} Nd7 {[%emt 0:16:24]} 15. Qd2 {[%emt 0:07:02]} b5 {[%emt 0:07:55]} 16. Ne2 {[%emt 0:11:23]} Qb6 {[%emt 0:03:52]} 17. Rec3 {[%emt 0:05:33]} Rfc8 {[%emt 0:00:55]} 18. Nf4 {[%emt 0:08:00]} Qb7 {[%emt 0:03:14]} 19. Nxe6 {[%emt 0:14:23]} fxe6 {[%emt 0:01:04]} 20. Bxe6+ {[%emt 0:00:06]} Kh8 {[%emt 0:00:31]} 21. Bd5 {[%emt 0:00:09]} Qb8 {[%emt 0:01:31]} 22. Rxc8+ {[%emt 0:00:41]} Bxc8 {[%emt 0:00:03]} 23. Bxa8 {[%emt 0:00:23]} Qxa8 {[%emt 0:00:06]} 24. Qf4 {[%emt 0:00:30]} Kg8 {[%emt 0:06:40]} 25. Rc7 {[%emt 0:04:29]} Bf8 {[%emt 0:03:53]} 26. Qf5 {[%emt 0:01:52]} Qb8 {[%emt 0:00:08]} 27. Ng5 {[%emt 0:00:57]} Qxc7 {[%emt 0:00:13]} 28. Qd5+ {[%emt 0:00:08]} Kh8 {[%emt 0:00:07]} 29. Nf7+ {[%emt 0:00:04]} 1-0

[Event "SVK Extraliga 2017-18"]
[Site "Slovakia"]
[Date "2017.12.10"]
[Round "6"]
[White "Veres, Andrej"]
[Black "Federic, Jozef"]
[Result "1/2-1/2"]
[ECO "D63"]
[WhiteElo "2217"]
[BlackElo "2238"]
[Annotator "NA"]
[PlyCount "31"]
[EventDate "2017.??.??"]
[EventType "team-tourn"]
[EventCountry "SVK"]
[SourceTitle "playchess.com"]
[Source "ChessBase"]
[SourceQuality "1"]
[TimeControl "40/5400+30:1800+30"]

1. d4 {[%emt 0:00:00]} d5 {[%emt 0:00:13]} 2. Nf3 {[%emt 0:00:06]} Nf6 {[%emt 0:00:30]} 3. c4 {[%emt 0:00:29]} e6 {[%emt 0:00:26]} 4. Nc3 {[%emt 0:00:32]} Be7 {[%emt 0:01:05]} 5. Bg5 {[%emt 0:00:44]} O-O {[%emt 0:01:26]} 6. e3 {[%emt 0:09:34]} Nbd7 {[%emt 0:06:39]} 7. Rc1 {[%emt 0:03:08]} c6 {[%emt 0:01:49]} 8. cxd5 {[%emt 0:05:03]} Nxd5 {[%emt 0:04:38]} 9. Bxe7 {[%emt 0:01:57]} Qxe7 {[%emt 0:00:21]} 10. Qc2 {[%emt 0:06:53]} Re8 {[%emt 0:03:02]} 11. Bc4 {[%emt 0:11:09]} Nxc3 {[%emt 0:04:23]} 12. Qxc3 {[%emt 0:01:47]} e5 {[%emt 0:00:48]} 13. dxe5 {[%emt 0:01:41]} Nxe5 {[%emt 0:00:21]} 14. Nxe5 {[%emt 0:01:00]} Qxe5 {[%emt 0:00:09]} 15. Qxe5 {[%emt 0:00:58]} Rxe5 {[%emt 0:00:06]} 16. Rd1 {[%emt 0:00:04]} 1/2-1/2

[Event "SVK Extraliga 2017-18"]
[Site "Slovakia"]
[Date "2017.12.10"]
[Round "6"]
[White "Jozefek, Michal"]
[Black "Hanko, Pavol"]
[Result "1-0"]
[ECO "E73"]
[WhiteElo "2201"]
[BlackElo "2073"]
[Annotator "NA"]
[PlyCount "61"]
[EventDate "2017.??.??"]
[EventType "team-tourn"]
[EventCountry "SVK"]
[SourceTitle "playchess.com"]
[Source "ChessBase"]
[SourceQuality "1"]
[TimeControl "40/5400+30:1800+30"]

1. d4 {[%emt 0:00:00]} Nf6 {[%emt 0:00:19]} 2. c4 {[%emt 0:00:00]} g6 {[%emt 0:00:25]} 3. Nc3 {[%emt 0:00:00]} Bg7 {[%emt 0:00:12]} 4. e4 {[%emt 0:00:07]} d6 {[%emt 0:00:19]} 5. Be2 {[%emt 0:00:13]} O-O {[%emt 0:00:39]} 6. Bg5 {[%emt 0:00:13]} c5 {[%emt 0:01:23]} 7. d5 {[%emt 0:00:08]} h6 {[%emt 0:00:56]} 8. Bf4 {[%emt 0:02:01]} Nbd7 {[%emt 0:02:33]} 9. Qd2 {[%emt 0:03:38]} Kh7 {[%emt 0:00:29]} 10. h4 {[%emt 0:00:23]} h5 {[%emt 0:11:06]} 11. Nf3 {[%emt 0:03:13]} Ne5 {[%emt 0:11:26]} 12. Nxe5 {[%emt 0:23:02]} dxe5 {[%emt 0:00:18]} 13. Be3 {[%emt 0:00:04]} b6 {[%emt 0:03:23]} 14. f3 {[%emt 0:02:00]} a6 {[%emt 0:16:02]} 15. O-O-O {[%emt 0:01:41]} Bd7 {[%emt 0:01:52]} 16. g4 {[%emt 0:02:32]} b5 {[%emt 0:09:03]} 17. Rdg1 {[%emt 0:01:33]} b4 {[%emt 0:07:11]} 18. Nd1 {[%emt 0:00:10]} hxg4 {[%emt 0:00:24]} 19. h5 {[%emt 0:00:32]} gxh5 {[%emt 0:02:01]} 20. fxg4 {[%emt 0:05:54]} Rh8 {[%emt 0:07:37]} 21. g5 {[%emt 0:02:50]} Ne8 {[%emt 0:03:22]} 22. Bxh5 {[%emt 0:00:36]} Kg8 {[%emt 0:00:31]} 23. Bxc5 {[%emt 0:02:10]} Rc8 {[%emt 0:10:47]} 24. Bxf7+ {[%emt 0:06:15]} Kxf7 {[%emt 0:00:54]} 25. Qf2+ {[%emt 0:00:06]} Nf6 {[%emt 0:00:57]} 26. gxf6 {[%emt 0:00:38]} Bxf6 {[%emt 0:01:28]} 27. b3 {[%emt 0:04:56]} Rb8 {[%emt 0:03:36]} 28. Qg2 {[%emt 0:01:52]} Qg8 {[%emt 0:01:32]} 29. Rxh8 {[%emt 0:00:16]} Qxh8 {[%emt 0:01:05]} 30. Qg6+ {[%emt 0:00:15]} Kf8 {[%emt 0:00:09]} 31. Rf1 {[%emt 0:00:53]} 1-0

[Event "SVK Extraliga 2017-18"]
[Site "Slovakia"]
[Date "2017.12.10"]
[Round "6"]
[White "Dobrotka, Martin"]
[Black "Pcola, Jaroslav"]
[Result "1-0"]
[ECO "A46"]
[WhiteElo "2195"]
[BlackElo "2113"]
[Annotator "NA"]
[PlyCount "68"]
[EventDate "2017.??.??"]
[EventType "team-tourn"]
[EventCountry "SVK"]
[SourceTitle "playchess.com"]
[Source "ChessBase"]
[SourceQuality "1"]
[TimeControl "40/5400+30:1800+30"]

1. d4 {[%emt 0:00:00]} Nf6 {[%emt 0:00:24]} 2. Nf3 {[%emt 0:00:49]} c5 {[%emt 0:00:46]} 3. c3 {[%emt 0:01:17]} g6 {[%emt 0:04:43]} 4. g3 {[%emt 0:05:31]} cxd4 {[%emt 0:11:02]} 5. cxd4 {[%emt 0:01:59]} Bg7 {[%emt 0:00:08]} 6. Nc3 {[%emt 0:02:13]} O-O {[%emt 0:00:30]} 7. Bg2 {[%emt 0:00:30]} d6 {[%emt 0:00:30]} 8. O-O {[%emt 0:00:30]} Nc6 {[%emt 0:00:30]} 9. h3 {[%emt 0:00:30]} Qa5 {[%emt 0:00:30]} 10. e4 {[%emt 0:00:30]} Rb8 {[%emt 0:00:30]} 11. d5 {[%emt 0:00:30]} Nd8 {[%emt 0:00:30]} 12. a3 {[%emt 0:35:39]} b5 {[%emt 0:28:33]} 13. Bd2 {[%emt 0:00:30]} Nd7 {[%emt 0:09:31]} 14. b4 {[%emt 0:09:36]} Qa6 {[%emt 0:02:15]} 15. Qc1 {[%emt 0:03:12]} Re8 {[%emt 0:03:36]} 16. Bh6 {[%emt 0:01:13]} Bh8 {[%emt 0:00:30]} 17. Rd1 {[%emt 0:00:30]} Qb6 {[%emt 0:00:30]} 18. Be3 {[%emt 0:00:30]} Qb7 {[%emt 0:09:23]} 19. Nd4 {[%emt 0:12:15]} a6 {[%emt 0:01:21]} 20. Nb3 {[%emt 0:01:50]} Nb6 {[%emt 0:04:38]} 21. Na5 {[%emt 0:01:13]} Qd7 {[%emt 0:09:29]} 22. Ra2 {[%emt 0:01:13]} f6 {[%emt 0:02:16]} 23. Rc2 {[%emt 0:08:05]} Nf7 {[%emt 0:01:16]} 24. f4 {[%emt 0:01:12]} Rf8 {[%emt 0:01:19]} 25. Ne2 {[%emt 0:01:05]} Nc4 {[%emt 0:02:02]} 26. Nxc4 {[%emt 0:00:21]} bxc4 {[%emt 0:00:01]} 27. Rxc4 {[%emt 0:00:47]} a5 {[%emt 0:00:55]} 28. Nd4 {[%emt 0:02:42]} axb4 {[%emt 0:02:32]} 29. axb4 {[%emt 0:00:58]} Qa4 {[%emt 0:00:42]} 30. b5 {[%emt 0:00:34]} Qa8 {[%emt 0:02:09]} 31. Rd3 {[%emt 0:01:35]} Nd8 {[%emt 0:01:26]} 32. Ra3 {[%emt 0:00:51]} Qb7 {[%emt 0:00:37]} 33. Rc7 {[%emt 0:00:18]} Qb6 {[%emt 0:00:51]} 34. Rxc8 {[%emt 0:00:14]} Ra8 1-0

[Event "SVK Extraliga 2017-18"]
[Site "Slovakia"]
[Date "2017.12.10"]
[Round "6"]
[White "Lembak, Jurij"]
[Black "Jacko, Vladimir"]
[Result "0-1"]
[ECO "A40"]
[WhiteElo "2186"]
[BlackElo "2317"]
[Annotator "NA"]
[PlyCount "56"]
[EventDate "2017.??.??"]
[EventType "team-tourn"]
[EventCountry "SVK"]
[SourceTitle "playchess.com"]
[Source "ChessBase"]
[SourceQuality "1"]
[TimeControl "40/5400+30:1800+30"]

1. d4 {[%emt 0:00:00]} g6 {[%emt 0:01:03]} 2. Nf3 {[%emt 0:00:18]} Bg7 {[%emt 0:00:06]} 3. c3 {[%emt 0:01:23]} Nf6 {[%emt 0:01:32]} 4. Bg5 {[%emt 0:04:41]} d6 {[%emt 0:03:58]} 5. Nbd2 {[%emt 0:00:47]} O-O {[%emt 0:00:17]} 6. e3 {[%emt 0:01:11]} h6 {[%emt 0:01:31]} 7. Bh4 {[%emt 0:01:47]} Nc6 {[%emt 0:00:04]} 8. Bc4 {[%emt 0:05:53]} Qe8 {[%emt 0:01:45]} 9. O-O {[%emt 0:03:53]} e5 {[%emt 0:00:30]} 10. dxe5 {[%emt 0:03:52]} dxe5 {[%emt 0:00:44]} 11. Qc2 {[%emt 0:10:55]} Kh8 {[%emt 0:00:09]} 12. Rfe1 {[%emt 0:02:44]} Nh5 {[%emt 0:01:23]} 13. e4 {[%emt 0:09:23]} f5 {[%emt 0:11:54]} 14. exf5 {[%emt 0:10:44]} gxf5 {[%emt 0:09:07]} 15. Bg3 {[%emt 0:09:21]} Nxg3 {[%emt 0:05:31]} 16. hxg3 {[%emt 0:02:00]} e4 {[%emt 0:02:57]} 17. Nh2 {[%emt 0:02:26]} Ne5 {[%emt 0:01:11]} 18. Be2 {[%emt 0:05:48]} Qg6 {[%emt 0:08:03]} 19. Nhf1 {[%emt 0:02:51]} Be6 {[%emt 0:04:30]} 20. Rad1 {[%emt 0:04:24]} Rae8 {[%emt 0:00:48]} 21. Qa4 {[%emt 0:03:24]} a6 {[%emt 0:06:05]} 22. Qb4 {[%emt 0:03:16]} Bc8 {[%emt 0:00:46]} 23. Qc5 {[%emt 0:00:56]} Nc6 {[%emt 0:12:49]} 24. Nc4 {[%emt 0:03:45]} b6 {[%emt 0:01:36]} 25. Qa3 {[%emt 0:02:33]} f4 {[%emt 0:01:09]} 26. gxf4 {[%emt 0:00:36]} Rxf4 {[%emt 0:00:35]} 27. Ng3 {[%emt 0:00:38]} Rh4 28. Qb3 {[%emt 0:02:48]} e3 {[%emt 0:16:41]} 0-1

[Event "SVK Extraliga 2017-18"]
[Site "Slovakia"]
[Date "2017.12.10"]
[Round "6"]
[White "Hlinka, Michal"]
[Black "Zambor, Norbert"]
[Result "1/2-1/2"]
[ECO "A46"]
[WhiteElo "2178"]
[BlackElo "2284"]
[Annotator "NA"]
[PlyCount "63"]
[EventDate "2017.??.??"]
[EventType "team-tourn"]
[EventCountry "SVK"]
[SourceTitle "playchess.com"]
[Source "ChessBase"]
[SourceQuality "1"]
[TimeControl "40/5400+30:1800+30"]

1. d4 {[%emt 0:00:00]} Nf6 {[%emt 0:00:15]} 2. Nf3 {[%emt 0:00:00]} e6 {[%emt 0:00:38]} 3. g3 {[%emt 0:00:00]} c5 {[%emt 0:01:14]} 4. c3 {[%emt 0:01:16]} Nc6 {[%emt 0:01:54]} 5. Bg2 {[%emt 0:00:11]} d5 {[%emt 0:00:49]} 6. O-O {[%emt 0:00:12]} Bd6 {[%emt 0:01:43]} 7. dxc5 {[%emt 0:01:06]} Bxc5 {[%emt 0:00:51]} 8. b4 {[%emt 0:00:02]} Bd6 {[%emt 0:02:51]} 9. a3 {[%emt 0:01:59]} O-O {[%emt 0:01:31]} 10. Nd4 {[%emt 0:05:05]} Bd7 {[%emt 0:12:43]} 11. Bb2 {[%emt 0:05:02]} Rc8 {[%emt 0:06:02]} 12. Nd2 {[%emt 0:00:59]} Nxd4 {[%emt 0:21:34]} 13. cxd4 {[%emt 0:00:52]} a5 {[%emt 0:03:06]} 14. Qb3 {[%emt 0:06:46]} axb4 {[%emt 0:00:48]} 15. axb4 {[%emt 0:00:02]} Qb6 {[%emt 0:02:05]} 16. Bc3 {[%emt 0:02:59]} Bb5 {[%emt 0:01:14]} 17. Bf3 {[%emt 0:00:25]} Rc6 {[%emt 0:06:27]} 18. Rfc1 {[%emt 0:15:38]} Rfc8 {[%emt 0:01:00]} 19. e3 {[%emt 0:02:21]} h6 {[%emt 0:10:37]} 20. Bg2 {[%emt 0:08:50]} Be7 {[%emt 0:01:41]} 21. h3 {[%emt 0:01:16]} Qd8 {[%emt 0:07:01]} 22. Qb2 {[%emt 0:04:17]} Qc7 {[%emt 0:01:11]} 23. Ra3 {[%emt 0:00:29]} Bd3 {[%emt 0:02:46]} 24. Bf1 {[%emt 0:01:34]} Bxf1 {[%emt 0:00:46]} 25. Kxf1 {[%emt 0:00:02]} Ne8 {[%emt 0:00:56]} 26. Rb3 {[%emt 0:06:12]} b5 {[%emt 0:02:28]} 27. Nf3 {[%emt 0:04:15]} f6 {[%emt 0:02:28]} 28. Ne1 {[%emt 0:00:28]} Nd6 {[%emt 0:01:17]} 29. Nd3 {[%emt 0:00:47]} Nc4 {[%emt 0:01:35]} 30. Qe2 {[%emt 0:00:51]} Ra8 {[%emt 0:02:45]} 31. Nc5 {[%emt 0:00:39]} f5 {[%emt 0:01:04]} 32. Rbb1 {[%emt 0:01:48]} 1/2-1/2

[Event "SVK Extraliga 2017-18"]
[Site "Slovakia"]
[Date "2017.12.10"]
[Round "6"]
[White "Macko, Michal"]
[Black "Krak, Tomas"]
[Result "1-0"]
[ECO "B24"]
[WhiteElo "2176"]
[BlackElo "2312"]
[Annotator "NA"]
[PlyCount "80"]
[EventDate "2017.??.??"]
[EventType "team-tourn"]
[EventCountry "SVK"]
[SourceTitle "playchess.com"]
[Source "ChessBase"]
[SourceQuality "1"]
[TimeControl "40/5400+30:1800+30"]

1. e4 {[%emt 0:00:00]} c5 {[%emt 0:00:04]} 2. Nc3 {[%emt 0:00:00]} Nc6 {[%emt 0:00:06]} 3. Bb5 {[%emt 0:00:04]} e6 {[%emt 0:02:37]} 4. Bxc6 {[%emt 0:00:10]} bxc6 {[%emt 0:00:39]} 5. d3 {[%emt 0:02:48]} Ba6 {[%emt 0:04:43]} 6. b3 {[%emt 0:09:54]} d5 {[%emt 0:03:45]} 7. Nge2 {[%emt 0:03:52]} Nf6 {[%emt 0:03:48]} 8. f3 {[%emt 0:10:50]} c4 {[%emt 0:20:01]} 9. dxc4 {[%emt 0:00:42]} Qa5 {[%emt 0:22:33]} 10. Bd2 {[%emt 0:10:07]} dxc4 {[%emt 0:00:07]} 11. Nd5 {[%emt 0:08:22]} Qd8 {[%emt 0:00:18]} 12. Ne3 {[%emt 0:02:58]} Bc5 {[%emt 0:05:15]} 13. b4 {[%emt 0:14:05]} Bb6 {[%emt 0:03:28]} 14. Nc3 {[%emt 0:00:56]} Nh5 {[%emt 0:08:43]} 15. g3 {[%emt 0:05:59]} Qe7 {[%emt 0:02:25]} 16. Rb1 {[%emt 0:02:12]} Rd8 {[%emt 0:00:31]} 17. Qe2 {[%emt 0:00:35]} O-O {[%emt 0:02:00]} 18. Ng2 {[%emt 0:05:04]} Bd4 {[%emt 0:05:44]} 19. f4 {[%emt 0:03:44]} Nf6 {[%emt 0:00:27]} 20. Nh4 {[%emt 0:00:11]} c5 {[%emt 0:02:46]} 21. b5 {[%emt 0:06:53]} Bb7 {[%emt 0:00:22]} 22. Nf3 {[%emt 0:00:44]} Bxc3 {[%emt 0:01:35]} 23. Bxc3 {[%emt 0:00:08]} Nxe4 {[%emt 0:00:27]} 24. Ba5 {[%emt 0:00:12]} Rc8 {[%emt 0:07:18]} 25. O-O {[%emt 0:04:20]} Bd5 {[%emt 0:01:13]} 26. Qe3 {[%emt 0:00:52]} Qb7 {[%emt 0:00:40]} 27. a4 {[%emt 0:02:54]} Nd6 {[%emt 0:00:29]} 28. Ne5 {[%emt 0:00:46]} Nf5 {[%emt 0:00:23]} 29. Qf2 {[%emt 0:00:16]} Nd4 {[%emt 0:00:50]} 30. Bc3 {[%emt 0:00:35]} f6 {[%emt 0:00:32]} 31. Bxd4 {[%emt 0:00:43]} cxd4 {[%emt 0:00:17]} 32. Nc6 {[%emt 0:00:12]} e5 {[%emt 0:00:18]} 33. Qe2 {[%emt 0:00:53]} Rxc6 {[%emt 0:01:03]} 34. bxc6 {[%emt 0:00:17]} Qxc6 {[%emt 0:00:06]} 35. fxe5 {[%emt 0:00:21]} Re8 {[%emt 0:00:43]} 36. Qh5 {[%emt 0:01:09]} g6 {[%emt 0:00:23]} 37. Qh4 {[%emt 0:00:18]} fxe5 {[%emt 0:00:42]} 38. Rb5 {[%emt 0:03:28]} Bh1 {[%emt 0:01:17]} 39. Rf2 {[%emt 0:00:45]} e4 {[%emt 0:00:31]} 40. Rf6 {[%emt 0:00:14]} Qa8 {[%emt 0:30:24]} 1-0